bitfinex/quotes_ETHUSD_20250920
["timestamp","ask_amount","ask_price","bid_price","bid_amount"]
[1758333433218,11.00710057,4477.1,4477.0,1e-08]
[1758333447118,5.96959875,4477.1,4477.0,1e-08]
[1758333447321,11.00710057,4477.1,4477.0,1e-08]
[1758333447618,10.77170057,4477.1,4477.0,1e-08]
[1758333459127,10.56254817,4477.1,4477.0,1e-08]
[1758333459298,10.77211432,4477.1,4477.0,1e-08]
[1758333460731,10.77213354,4477.1,4477.0,1e-08]
[1758333467264,11.00903354,4477.1,4477.0,1e-08]
[1758333468462,10.77213354,4477.1,4477.0,1e-08]
[1758333471177,10.77222688,4477.1,4477.0,1e-08]
[1758333478496,11.00912688,4477.1,4477.0,1e-08]
[1758333479196,11.00915601,4477.1,4477.0,1e-08]
[1758333479692,10.77225601,4477.1,4477.0,1e-08]
[1758333479879,10.77249229,4477.1,4477.0,1e-08]
[1758333481898,3.50140177,4477.1,4477.0,0.11440001]
[1758333482066,0.50140177,4477.1,4477.0,0.11440001]
[1758333482464,0.2917612,4477.1,4477.0,0.11440001]
[1758333482687,0.50140177,4477.1,4477.0,0.11440001]
[1758333482894,6.99924721,4477.1,4477.0,0.11440001]
[1758333484015,6.99924721,4477.1,4477.0,1e-08]
[1758333488218,10.23984721,4477.1,4477.0,1e-08]
[1758333495552,10.22474721,4477.1,4477.0,1e-08]
[1758333497735,2.23388808,4476.5,4476.4,3.45960001]
[1758333497937,6.83356965,4476.5,4476.4,3.45960001]
[1758333498234,9.83356965,4476.5,4476.4,3.45960001]
[1758333498535,10.50531395,4476.5,4476.4,3.45960001]
[1758333501856,10.73081395,4476.5,4476.4,3.45960001]
[1758333503166,5.23393798,4476.4,4476.1,0.011]
[1758333503364,5.79486281,4476.4,4476.1,0.011]
[1758333503982,5.79458204,4476.4,4476.1,0.011]
[1758333509480,5.79449166,4476.4,4476.1,0.011]
[1758333512983,9.50449166,4476.4,4476.1,0.011]
[1758333522875,5.79449166,4476.4,4476.1,0.011]
[1758333533620,5.79649166,4476.4,4476.1,0.011]
[1758333543862,10.83676128,4476.4,4476.1,0.011]
[1758333544071,10.62712071,4476.4,4476.1,0.011]
[1758333544239,10.83717,4476.4,4476.1,0.011]
[1758333548163,10.71136512,4476.4,4476.1,0.011]
[1758333548343,10.83715968,4476.4,4476.1,0.011]
[1758333548672,10.61165968,4476.4,4476.1,0.011]
[1758333555785,10.85115968,4476.4,4476.1,0.011]
[1758333556085,10.40200211,4476.4,4476.1,0.011]
[1758333556292,10.61167719,4476.4,4476.1,0.011]
[1758333564104,10.85117719,4476.4,4476.1,0.011]
[1758333581047,10.61167719,4476.4,4476.1,0.011]
[1758333585866,10.61173682,4476.4,4476.1,0.011]
[1758333588475,10.85923682,4476.4,4476.1,0.011]
[1758333591376,10.61173682,4476.4,4476.1,0.011]
[1758333593289,10.61173682,4476.4,4475.8,1e-08]
[1758333593290,10.27445715,4475.9,4475.8,1e-08]
[1758333593445,14.56300522,4475.9,4475.8,1e-08]
[1758333593650,2.23433729,4475.6,4475.5,0.001]
[1758333593845,9.27786651,4475.6,4475.5,0.001]
[1758333594073,9.52536651,4475.6,4475.5,0.001]
[1758333594467,9.61497214,4475.6,4475.5,0.001]
[1758333595857,9.36724916,4475.6,4475.5,0.001]
[1758333596052,9.61474916,4475.6,4475.5,0.001]
[1758333596458,9.72639081,4475.6,4475.5,0.001]
[1758333601084,9.47889081,4475.6,4475.5,0.001]
[1758333601282,2.234537,4475.2,4475.1,1e-08]
[1758333601596,7.61011286,4475.2,4475.1,1e-08]
[1758333601796,10.84901286,4475.2,4475.1,1e-08]
[1758333603201,10.61011286,4475.2,4475.1,1e-08]
[1758333605876,14.10810998,4475.2,4475.1,1e-08]
[1758333606075,14.10810998,4475.2,4473.6,2.481]
[1758333606076,14.34700998,4475.2,4473.6,2.481]
[1758333606274,9.5041698,4474.2,4473.5,1.933]
[1758333606473,9.5041698,4474.2,4473.6,0.1144]
[1758333606474,9.83947604,4474.2,4473.6,0.1144]
[1758333607210,9.83835904,4474.2,4473.7,0.1144]
[1758333608391,9.83778453,4474.2,4473.7,0.1144]
[1758333610281,10.07668453,4474.2,4474.1,1e-08]
[1758333612010,9.83778453,4474.2,4474.1,1e-08]
[1758333612183,13.55978453,4474.2,4474.1,1e-08]
[1758333613900,9.83890153,4474.2,4474.1,1e-08]
[1758333614103,13.56090153,4474.2,4474.1,0.11440001]
[1758333614436,2.56976816,4474.2,4474.1,0.11440001]
[1758333614720,5.36031606,4474.2,4474.1,0.11440001]
[1758333615088,2.36031606,4474.2,4474.1,0.11440001]
[1758333616316,2.23503643,4474.2,4474.1,0.11440001]
[1758333618185,2.36024449,4474.2,4474.1,0.11440001]
[1758333618629,2.36024449,4474.2,4474.1,0.11540001]
[1758333619138,0.67222296,4474.3,4474.1,0.11540001]
[1758333619339,2.90721737,4474.3,4474.1,0.11540001]
[1758333619640,5.23503643,4474.2,4474.1,0.11540001]
[1758333620340,5.23503643,4474.2,4474.1,0.00100001]
[1758333620527,3.0,4474.2,4474.1,0.11540001]
[1758333623115,3.12545407,4474.2,4474.1,0.11540001]
[1758333629667,3.0,4474.2,4474.1,0.11540001]
[1758333629825,3.0,4474.2,4474.1,0.80195695]
[1758333630266,2.23464778,4475.0,4474.1,0.80195695]
[1758333630427,0.6719956,4474.5,4474.1,0.68755695]
[1758333630627,0.12551126,4474.4,4474.2,0.1144]
[1758333630823,0.12551126,4474.4,4474.1,0.68755695]
[1758333630824,0.12551126,4474.3,4474.1,0.68755695]
[1758333631026,0.12551126,4474.2,4474.1,0.02335087]
[1758333631263,0.12551126,4474.4,4474.1,0.02335087]
[1758333631558,0.12551126,4474.3,4474.1,0.02335087]
[1758333631752,0.12551126,4474.4,4474.2,0.1144]
[1758333631952,0.12551126,4474.4,4474.1,0.02335087]
[1758333631953,0.67198807,4474.5,4474.3,0.35168739]
[1758333632267,0.1254993,4474.4,4474.3,0.23728739]
[1758333633168,0.1254993,4474.4,4474.1,0.00100001]
[1758333633326,0.1254993,4474.4,4474.1,0.11540001]
[1758333633530,0.1254993,4474.5,4474.1,0.11540001]
[1758333633762,0.1254993,4474.4,4474.1,0.00100001]
[1758333633961,0.1254993,4474.4,4474.2,0.1144]
[1758333634282,0.1254993,4474.4,4474.2,0.34945836]
[1758333634632,0.1254993,4474.4,4474.2,0.1144]
[1758333634827,0.1254993,4474.4,4474.1,0.00100001]
[1758333635063,0.1254993,4474.4,4474.1,0.11540001]
[1758333635263,0.67198807,4474.5,4474.2,0.1144]
[1758333635572,0.67198807,4474.5,4474.3,0.13674986]
[1758333635939,0.79748737,4474.5,4474.3,3.85474986]
[1758333636147,0.67198807,4474.5,4474.4,0.72347968]
[1758333636464,0.67198807,4474.5,4474.4,0.60907968]
[1758333636869,5.23493652,4474.4,4474.3,3.718]
[1758333637041,3.1254993,4474.4,4474.3,3.718]
[1758333638566,5.36043582,4474.4,4474.3,3.718]
[1758333640467,2.36043582,4474.4,4474.3,3.718]
[1758333640979,0.1254993,4474.4,4474.3,3.718]
[1758333641267,3.7975265,4474.5,4474.3,3.718]
[1758333641470,0.1254993,4474.4,4474.3,3.718]
[1758333641671,2.90692483,4474.5,4474.3,3.718]
[1758333642381,0.12546028,4474.4,4474.3,3.718]
[1758333643854,0.12546028,4474.4,4474.1,0.00100001]
[1758333644037,0.12546028,4474.4,4474.2,3.716]
[1758333645879,0.79758038,4474.5,4474.3,0.13674986]
[1758333646065,0.12555318,4474.8,4474.4,0.1144]
[1758333646569,0.12555318,4475.1,4474.2,4.0877]
[1758333646883,5.47680109,4474.9,4474.2,4.0877]
[1758333647049,0.67197903,4474.5,4474.2,3.716]
[1758333647786,0.79753221,4474.5,4474.2,3.716]
[1758333649089,0.67197903,4474.5,4474.2,3.716]
[1758333649262,0.79753221,4474.5,4474.2,3.716]
[1758333650685,3.79753221,4474.5,4474.2,3.716]
[1758333650880,3.67197903,4474.5,4474.2,3.716]
[1758333651878,3.91207903,4474.5,4474.2,3.716]
[1758333652597,0.2401,4474.4,4474.1,0.00100001]
[1758333652761,2.23503643,4474.2,4474.1,0.00100001]
[1758333652966,2.36061837,4474.2,4474.1,3.71500001]
[1758333653167,5.60071837,4474.2,4474.1,3.71500001]
[1758333657693,5.60071837,4474.2,4474.1,0.00100001]
[1758333657892,5.81005916,4474.2,4474.1,0.00100001]
[1758333661914,10.07919253,4474.2,4474.1,0.00100001]
[1758333664716,5.56995916,4474.2,4474.1,0.00100001]
[1758333664925,0.33492273,4474.2,4474.1,0.00100001]
[1758333665217,0.67205881,4474.3,4474.1,0.51148611]
[1758333665413,0.67205881,4474.3,4474.2,3.8274]
[1758333665651,0.79752812,4474.3,4474.2,3.8274]
[1758333665946,0.67205881,4474.3,4474.2,3.8274]
[1758333667647,0.67205881,4474.3,4474.2,3.713]
[1758333669037,0.67205881,4474.3,4474.2,3.8274]
[1758333669266,0.67205881,4474.3,4474.2,4.21247509]
[1758333670369,0.002,4474.5,4474.2,4.21247509]
[1758333670536,0.002,4474.5,4474.3,0.02234986]
[1758333670735,0.67400613,4474.5,4474.3,0.13674986]
[1758333670935,0.67400613,4474.5,4474.2,4.09807509]
[1758333671132,0.67400613,4474.5,4474.2,4.21247509]
[1758333671337,0.67400613,4474.5,4474.3,0.02234986]
[1758333671841,0.67400613,4474.5,4474.2,3.8274]
[1758333672038,0.002,4474.3,4474.2,3.8274]
[1758333673473,0.002,4474.3,4474.2,3.84975036]
[1758333673653,0.002,4474.3,4474.2,4.45610871]
[1758333673858,0.002,4474.3,4474.2,4.43375835]
[1758333675395,0.002,4474.3,4474.2,3.713]
[1758333676578,0.002,4474.3,4474.1,1.93400001]
[1758333676579,2.23503643,4474.2,4474.1,1.93400001]
[1758333676768,2.36051101,4474.2,4474.1,5.64500001]
[1758333676967,5.60601101,4474.2,4474.1,5.64500001]
[1758333680956,5.81519945,4474.2,4474.1,1.93400001]
[1758333681160,5.81519945,4474.2,4474.1,5.64500001]
[1758333681781,5.81519945,4474.2,4474.1,3.71200001]
[1758333683353,5.81519945,4474.2,4474.1,3.71300001]
[1758333685783,5.56969945,4474.2,4474.1,3.71300001]
[1758333686080,5.56969945,4474.2,4474.1,3.82740001]
[1758333686463,5.56969945,4474.2,4474.1,3.71300001]
[1758333691373,5.81519945,4474.2,4474.1,3.71300001]
[1758333691811,5.81519945,4474.2,4474.1,0.00100001]
[1758333695018,5.81184686,4474.2,4474.1,0.00100001]
[1758333696724,5.56634686,4474.2,4474.1,0.00100001]
[1758333698608,3.33131043,4474.2,4474.1,0.00100001]
[1758333698808,5.56634686,4474.2,4474.1,0.11540001]
[1758333699136,5.56634686,4474.2,4474.1,0.00100001]
[1758333699740,5.56648456,4474.2,4474.1,0.00100001]
[1758333702746,3.12212199,4474.2,4474.1,0.11540001]
[1758333702945,3.12212199,4474.2,4474.1,0.50027515]
[1758333703743,3.12212199,4474.2,4474.1,0.38587515]
[1758333704446,5.35715842,4474.2,4474.1,0.38587515]
[1758333704649,5.56658648,4474.2,4474.1,0.00100001]
[1758333706448,5.56858648,4474.2,4474.1,0.00100001]
[1758333707711,5.57222263,4474.2,4474.1,0.00100001]
[1758333710234,5.36273125,4474.2,4474.1,0.00100001]
[1758333710824,3.12769482,4474.2,4474.1,0.00100001]
[1758333711151,3.12769482,4474.2,4474.1,0.37220001]
[1758333711351,3.12769482,4474.2,4474.1,0.48660001]
[1758333711844,3.12769482,4474.2,4474.1,0.37220001]
[1758333714168,3.1276801,4474.2,4474.1,0.37220001]
[1758333721814,0.002,4474.2,4474.1,0.39455087]
[1758333722096,0.002,4474.2,4474.1,2.74403725]
[1758333722702,0.002,4474.2,4474.1,2.72168639]
[1758333723290,0.002,4474.2,4474.1,0.48660001]
[1758333723492,0.002,4474.2,4474.1,2.60728639]
[1758333726911,0.002,4474.2,4474.1,0.37220001]
[1758333727328,0.002,4474.2,4474.1,0.00100001]
[1758333727494,0.251,4474.2,4474.1,3.71100001]
[1758333730121,0.251,4474.2,4474.1,3.73335087]
[1758333730608,0.002,4474.2,4474.1,3.73335087]
[1758333731210,0.002,4474.2,4474.1,3.71100001]
[1758333733022,0.251,4474.2,4474.1,3.71100001]
[1758333733922,0.002,4474.2,4474.1,3.71100001]
[1758333734631,0.002,4474.2,4474.1,4.30785795]
[1758333735122,0.002,4474.2,4474.1,6.67969519]
[1758333735321,0.002,4474.2,4474.1,6.54294433]
[1758333736709,0.002,4474.2,4474.1,4.30785795]
[1758333738224,0.002,4474.2,4474.1,6.54294433]
[1758333738716,0.002,4474.2,4474.1,6.65734433]
[1758333740029,0.002,4474.2,4474.1,6.54294433]
[1758333745850,0.002,4474.2,4474.1,4.30785795]
[1758333746044,0.002,4474.2,4474.1,6.54294433]
[1758333746718,0.002,4474.2,4474.1,4.30785795]
[1758333747030,0.002,4474.2,4474.1,6.54294433]
[1758333748234,0.002,4474.2,4474.1,8.47594433]
[1758333750720,0.002,4474.2,4474.1,2.53085795]
[1758333750864,2.46513643,4474.2,4474.1,5.64300001]
[1758333751159,2.59069656,4474.2,4474.1,5.64300001]
[1758333753668,2.59068484,4474.2,4474.1,5.64300001]
[1758333757583,2.59066025,4474.2,4474.1,3.71000001]
[1758333757782,2.46513643,4474.2,4474.1,3.71000001]
[1758333762965,0.002,4474.2,4474.1,3.71000001]
[1758333763179,0.002,4474.2,4474.1,4.20684001]
[1758333763662,0.002,4474.2,4474.1,8.49615562]
[1758333763864,0.002,4474.2,4474.1,8.47380476]
[1758333764560,0.002,4474.2,4474.1,10.70889114]
[1758333768686,0.002,4474.2,4474.1,4.53981496]
[1758333771988,0.002,4474.2,4474.1,6.47281496]
[1758333772299,0.2506,4474.2,4474.1,6.47281496]
[1758333778520,0.002,4474.2,4474.1,1.93400001]
[1758333778806,2.48563643,4474.2,4474.1,5.64300001]
[1758333779105,5.61111928,4474.2,4474.1,5.64300001]
[1758333782427,5.82008527,4474.2,4474.1,3.71000001]
[1758333782725,10.08705002,4474.2,4474.1,0.00100001]
[1758333783089,13.79605002,4474.2,4474.1,0.00100001]
[1758333787835,14.23999159,4474.2,4474.1,0.00100001]
[1758333788017,14.57348309,4474.2,4474.1,0.00100001]
[1758333793780,15.36548309,4474.2,4474.1,0.00100001]
[1758333793938,15.6108069,4474.2,4474.1,0.00100001]
[1758333796750,15.72760832,4474.2,4474.1,0.00100001]
[1758333796952,18.08360832,4474.2,4474.1,0.00100001]
[1758333797185,15.72760832,4474.2,4474.1,0.00100001]
[1758333797498,16.07810516,4474.2,4474.1,0.00100001]
[1758333797797,12.12378135,4474.2,4474.1,0.00100001]
[1758333797950,15.83378135,4474.2,4474.1,0.00100001]
[1758333798147,6.03782619,4474.2,4474.1,0.00100001]
[1758333798484,9.39732935,4474.2,4474.1,0.00100001]
[1758333798643,5.68732935,4474.2,4474.1,0.00100001]
[1758333798844,2.47889716,4474.2,4474.1,0.11540001]
[1758333799070,6.18989716,4474.2,4474.1,0.11540001]
[1758333799567,9.18989716,4474.2,4474.1,0.11540001]
[1758333800372,5.47889716,4474.2,4474.1,0.11540001]
[1758333800684,5.47889716,4474.2,4474.1,0.00100001]
[1758333802288,5.68699091,4474.2,4474.1,0.00100001]
[1758333802651,5.93459091,4474.2,4474.1,0.00100001]
[1758333803551,5.93453906,4474.2,4474.1,0.00100001]
[1758333804385,10.97989422,4474.2,4474.1,0.00100001]
[1758333815569,12.01721803,4474.2,4474.1,0.00100001]
[1758333819406,12.01786938,4474.2,4474.1,0.00100001]
[1758333827305,2.23528622,4473.7,4473.6,0.001]
[1758333827635,11.32539394,4473.7,4473.6,0.001]
[1758333827929,14.32539394,4473.7,4473.6,0.001]
[1758333829743,9.28003878,4473.7,4473.6,0.1154]
[1758333831004,5.56903878,4473.7,4473.6,0.1154]
[1758333831333,9.2801825,4473.7,4473.6,0.1154]
[1758333831633,9.2801825,4473.7,4473.6,0.001]
[1758333833206,5.5691825,4473.7,4473.6,0.001]
[1758333833406,14.32553766,4473.7,4473.6,0.001]
[1758333833610,14.55053766,4473.7,4473.6,0.001]
[1758333835949,14.32553766,4473.7,4473.6,0.001]
[1758333839855,9.2801825,4473.7,4473.6,0.001]
[1758333842641,9.2801825,4473.7,4473.6,0.1154]
[1758333844541,9.2801825,4473.7,4473.6,0.001]
[1758333844766,14.57153766,4473.7,4473.6,0.001]
[1758333845873,14.57246362,4473.7,4473.6,0.001]
[1758333846079,11.57246362,4473.7,4473.6,0.001]
[1758333847784,14.32646362,4473.7,4473.6,0.001]
[1758333848605,10.61546362,4473.7,4473.6,0.001]
[1758333848764,14.32646362,4473.7,4473.6,0.001]
[1758333849666,11.32646362,4473.7,4473.6,0.001]
[1758333849978,13.5526416,4473.7,4473.6,0.001]
[1758333850159,13.7986416,4473.7,4473.6,0.001]
[1758333850365,14.06169853,4473.7,4473.6,0.001]
[1758333852100,13.81569853,4473.7,4473.6,0.001]
[1758333852659,14.06169853,4473.7,4473.6,0.001]
[1758333853286,14.06165304,4473.7,4473.6,0.001]
[1758333853674,14.06165268,4473.7,4473.6,0.001]
[1758333854798,14.85365268,4473.7,4473.6,0.001]
[1758333855491,6.50701924,4473.3,4473.2,0.001]
[1758333855666,13.55279563,4473.3,4473.2,0.001]
[1758333856687,13.66719563,4473.3,4473.2,0.001]
[1758333859209,2.23588596,4472.5,4472.4,1.934]
[1758333859418,2.23598595,4472.3,4472.2,0.1144]
[1758333859588,2.57076234,4472.3,4472.2,0.1144]
[1758333859764,5.57076234,4472.3,4472.2,0.1144]
[1758333860463,6.24323845,4472.3,4472.2,0.1144]
[1758333861798,5.23603595,4472.2,4471.7,1.934]
[1758333861997,2.57081234,4472.2,4471.9,0.1144]
[1758333862411,2.57081234,4472.2,4472.1,0.1244]
[1758333862803,2.57081234,4472.2,4472.1,0.01]
[1758333862989,5.80661234,4472.2,4472.1,0.01]
[1758333863397,5.57081234,4472.2,4472.1,0.01]
[1758333864427,9.28181234,4472.2,4472.1,0.01]
[1758333865323,9.28131622,4472.2,4472.1,0.01]
[1758333868844,9.51711622,4472.2,4472.1,0.01]
[1758333869546,9.28131622,4472.2,4472.1,0.01]
[1758333869752,9.51711622,4472.2,4472.1,0.01]
[1758333870991,9.28131622,4472.2,4472.1,0.01]
[1758333871172,9.51711622,4472.2,4472.1,0.01]
[1758333872280,5.23653605,4471.2,4471.1,0.01]
[1758333872486,5.36209439,4471.2,4471.1,0.01]
[1758333875685,5.36154164,4471.2,4471.1,0.01]
[1758333875991,5.36154173,4471.2,4471.1,0.01]
[1758333876847,5.23653605,4471.2,4471.1,0.01]
[1758333877888,5.23653605,4471.2,4471.1,0.011]
[1758333879394,5.36154984,4471.2,4471.1,0.011]
[1758333888435,3.12501379,4471.2,4471.1,0.1254]
[1758333888603,5.36154984,4471.2,4471.1,0.1254]
[1758333888808,5.36154984,4471.2,4471.1,0.011]
[1758333892802,5.57048893,4471.2,4471.1,0.011]
[1758333895406,5.80898893,4471.2,4471.1,0.011]
[1758333896546,5.57048893,4471.2,4471.1,0.011]
[1758333898576,5.80898893,4471.2,4471.1,0.011]
[1758333903991,6.60098893,4471.2,4471.1,0.011]
[1758333904146,5.82008893,4471.2,4471.1,0.011]
[1758333904349,5.57048893,4471.2,4471.1,0.011]
[1758333904585,5.57048893,4471.2,4471.1,0.1254]
[1758333906254,5.57048893,4471.2,4471.1,0.011]
[1758333912293,5.82008893,4471.2,4471.1,0.011]
[1758333913003,9.53408893,4471.2,4471.1,0.011]
[1758333916582,10.32608893,4471.2,4471.1,0.011]
[1758333917691,5.57048893,4471.2,4471.1,0.011]
[1758333917927,9.28348893,4471.2,4471.1,0.011]
[1758333918108,5.57048893,4471.2,4471.1,0.011]
[1758333920472,5.81248893,4471.2,4471.1,0.011]
[1758333922072,9.52948893,4471.2,4471.1,0.011]
[1758333923247,9.28748893,4471.2,4471.1,0.011]
[1758333923751,5.57048893,4471.2,4471.1,0.011]
[1758333929790,2.57048893,4471.2,4471.1,0.011]
[1758333930402,5.57048893,4471.2,4471.1,0.011]
[1758333930561,5.57048893,4471.2,4471.1,0.1254]
[1758333931388,5.57048893,4471.2,4471.1,0.011]
[1758333932867,5.36154984,4471.2,4471.1,0.011]
[1758333933262,2.36154984,4471.2,4471.1,0.011]
[1758333936186,0.12501379,4471.2,4471.1,0.011]
[1758333936373,2.23653605,4471.2,4471.1,0.1254]
[1758333936708,5.36154984,4471.2,4471.1,0.1254]
[1758333936873,5.36154984,4471.2,4471.1,0.011]
[1758333939485,5.60354984,4471.2,4471.1,0.011]
[1758333940181,5.36154984,4471.2,4471.1,0.011]
[1758333942080,5.36185419,4471.2,4471.1,0.011]
[1758333942936,3.0,4471.2,4471.1,0.1254]
[1758333947020,3.0,4471.2,4471.1,0.51167669]
[1758333947224,3.0,4471.7,4471.1,0.51167669]
[1758333947388,2.2362608,4471.8,4471.2,0.1144]
[1758333947389,2.23624461,4471.8,4471.2,0.1144]
[1758333947589,0.67243843,4471.5,4471.2,0.1144]
[1758333948112,3.67243843,4471.5,4471.1,0.39727669]
[1758333948435,0.91823843,4471.5,4471.1,0.39727669]
[1758333948618,0.67243843,4471.5,4471.1,0.39727669]
[1758333951425,0.67243843,4471.5,4471.2,0.63489621]
[1758333951830,3.67243843,4471.5,4471.2,0.63489621]
[1758333952922,2.90883701,4471.5,4471.2,0.63489621]
[1758333953127,2.23653605,4471.2,4471.1,0.011]
[1758333953492,2.48233605,4471.2,4471.1,0.011]
[1758333954726,0.2458,4471.2,4471.1,0.011]
[1758333955031,5.48233605,4471.2,4471.1,0.011]
[1758333955195,5.60746432,4471.2,4471.1,0.011]
[1758333960363,2.36166432,4471.2,4471.1,0.011]
[1758333961047,0.67251833,4471.3,4471.1,0.011]
[1758333961286,0.67251833,4471.3,4471.1,0.1254]
[1758333961568,0.67251833,4471.3,4471.2,0.1144]
[1758333961766,2.23641596,4471.5,4471.2,0.1144]
[1758333961926,2.90874907,4471.8,4471.3,0.02236486]
[1758333962117,0.12521245,4471.7,4471.4,0.1144]
[1758333962322,2.23624733,4471.8,4471.4,0.1144]
[1758333962521,2.35064733,4471.8,4471.4,0.1144]
[1758333962957,2.35064733,4471.8,4471.3,3.9768047]
[1758333963260,0.1144,4471.8,4471.3,4.0912047]
[1758333963444,2.23618623,4471.9,4471.4,0.52462047]
[1758333963648,2.23623653,4471.8,4471.5,0.02236386]
[1758333963962,0.67245652,4472.0,4471.3,3.95443984]
[1758333964263,0.2417,4471.9,4471.4,0.02236436]
[1758333964558,3.2417,4471.9,4471.4,0.02236436]
[1758333964744,2.23637549,4471.6,4471.3,3.716]
[1758333965128,2.47798103,4471.8,4471.3,3.716]
[1758333965363,2.23619674,4471.9,4471.3,3.716]
[1758333965659,2.23637697,4471.6,4471.3,3.716]
[1758333965863,2.47807697,4471.6,4471.3,3.716]
[1758333967238,0.2417,4471.6,4471.3,3.716]
[1758333968179,2.47805852,4471.6,4471.3,3.716]
[1758333968781,2.23639525,4471.5,4471.3,3.716]
[1758333969457,2.47813601,4471.4,4471.3,3.716]
[1758333969961,2.47813601,4471.4,4471.1,3.725]
[1758333969962,0.2417,4471.4,4471.1,3.725]
[1758333970147,2.23653605,4471.2,4471.1,3.725]
[1758333970354,5.47823605,4471.2,4471.1,3.725]
[1758333970680,2.47823605,4471.2,4471.1,3.725]
[1758333972853,2.47823605,4471.2,4471.1,0.011]
[1758333973647,0.2417,4471.2,4471.1,0.011]
[1758333974349,2.47823605,4471.2,4471.1,0.011]
[1758333977476,0.2417,4471.2,4471.1,0.011]
[1758333977683,2.23639076,4471.5,4471.1,0.011]
[1758333978286,2.23649206,4471.3,4471.1,0.011]
[1758333978674,2.23643902,4471.4,4471.1,0.011]
[1758333979814,0.6725349,4471.6,4471.1,0.38573664]
[1758333979981,0.6725349,4471.6,4471.2,0.13676536]
[1758333980364,2.36165067,4471.6,4471.2,0.13676536]
[1758333980565,2.23635657,4471.6,4471.2,0.13676536]
[1758333981892,2.23635657,4471.6,4471.2,0.02236536]
[1758333982062,2.23639305,4471.5,4471.1,0.38573664]
[1758333983197,2.23639305,4471.5,4471.2,0.02236536]
[1758333983396,2.23639305,4471.5,4471.1,0.38573664]
[1758333983604,2.23644262,4471.4,4471.1,0.38573664]
[1758333983845,2.23653439,4471.3,4471.1,0.011]
[1758333983978,2.48503439,4471.3,4471.1,0.011]
[1758333984358,2.23653605,4471.2,4471.1,0.011]
[1758333984590,2.23653605,4471.2,4471.1,3.724]
[1758333984591,2.48503605,4471.2,4471.1,3.724]
[1758333986962,2.48503605,4471.2,4471.1,0.011]
[1758333987988,2.61038919,4471.2,4471.1,0.011]
[1758333989372,2.36188919,4471.2,4471.1,0.011]
[1758333996338,2.61038919,4471.2,4471.1,0.011]
[1758333998328,2.36188919,4471.2,4471.1,0.011]
[1758334000114,2.61038919,4471.2,4471.1,0.011]
[1758334000449,9.88502798,4471.2,4471.1,0.011]
[1758334000613,10.09397316,4471.2,4471.1,0.011]
[1758334003525,13.80797316,4471.2,4471.1,0.011]
[1758334004257,10.09397316,4471.2,4471.1,0.011]
[1758334004555,13.80767658,4471.2,4471.1,0.011]
[1758334007168,13.80867658,4471.2,4471.1,0.011]
[1758334010065,13.80767658,4471.2,4471.1,0.011]
[1758334013460,9.28453779,4471.2,4471.1,0.011]
[1758334015451,5.3617867,4471.2,4471.1,0.011]
[1758334016191,0.12525065,4471.2,4471.1,0.011]
[1758334016352,2.23649202,4471.3,4471.1,0.1254]
[1758334016681,2.35089202,4471.3,4471.1,0.1254]
[1758334016862,2.23653605,4471.2,4471.1,0.1254]
[1758334017061,2.23648164,4471.4,4471.1,0.1254]
[1758334017717,2.23648164,4471.4,4471.1,0.011]
[1758334017990,2.23649397,4471.3,4471.1,0.011]
[1758334018794,2.23653605,4471.2,4471.1,0.011]
[1758334020893,2.23648471,4471.4,4471.1,0.011]
[1758334021097,0.1144,4471.5,4471.1,0.011]
[1758334021098,2.23651937,4471.3,4471.1,0.011]
[1758334021615,2.23653605,4471.2,4471.1,0.011]
[1758334022118,3.0,4471.7,4471.1,0.011]
[1758334022119,3.002,4472.1,4471.1,3.8394]
[1758334022318,0.1144,4471.3,4471.2,7.0318802]
[1758334022492,0.1144,4471.3,4471.2,8.94451484]
[1758334022982,0.002,4472.1,4471.4,2.23642874]
[1758334023182,0.67240678,4472.0,4471.5,1.14045822]
[1758334023413,0.67240678,4472.0,4471.6,0.1144]
[1758334023620,0.67240678,4472.0,4471.7,3.73736285]
[1758334023923,0.67240678,4472.0,4471.8,0.1144]
[1758334024116,0.67240678,4472.0,4471.9,0.13676185]
[1758334024416,0.67240678,4472.0,4471.9,0.52193804]
[1758334024920,0.002,4472.1,4471.9,0.52193804]
[1758334025232,0.67437513,4472.1,4471.9,0.52193804]
[1758334025418,0.002,4472.1,4471.9,0.52193804]
[1758334025624,0.002,4472.1,4472.0,0.1144]
[1758334025809,0.002,4472.1,4472.0,0.5380938]
[1758334026522,0.002,4472.1,4472.0,0.4236938]
[1758334026523,2.23808595,4472.1,4472.0,0.4236938]
[1758334026824,5.23808595,4472.1,4471.7,3.715]
[1758334027229,0.2387,4472.0,4471.7,3.715]
[1758334031767,5.23808595,4472.1,4471.7,3.715]
[1758334031966,5.47678595,4472.1,4471.7,3.715]
[1758334032454,3.2407,4472.1,4471.7,3.715]
[1758334032649,2.2361827,4472.0,4471.7,3.715]
[1758334034678,0.91307362,4472.1,4471.7,3.715]
[1758334034857,3.0,4472.0,4471.7,3.715]
[1758334035670,0.2464,4471.9,4471.2,1.935]
[1758334035846,0.2464,4471.8,4471.3,3.713]
[1758334036046,2.23637808,4471.6,4471.3,3.713]
[1758334036370,0.2464,4471.5,4471.3,3.713]
[1758334036588,3.15525821,4471.5,4471.3,3.713]
[1758334036790,0.2464,4471.4,4471.3,3.713]
[1758334038287,2.23648603,4471.3,4471.2,1.935]
[1758334038472,2.48288603,4471.3,4471.2,5.649]
[1758334042292,0.2464,4471.3,4471.2,5.649]
[1758334043772,0.2464,4471.3,4471.2,5.648]
[1758334044413,2.23643827,4471.4,4471.2,5.648]
[1758334044605,2.48283827,4471.4,4471.2,5.648]
[1758334045178,2.48283827,4471.4,4471.2,1.935]
[1758334045532,2.48283827,4471.4,4471.3,3.713]
[1758334047021,2.23648603,4471.3,4471.2,1.935]
[1758334047227,2.48288603,4471.3,4471.2,5.648]
[1758334047715,6.15540284,4471.3,4471.2,5.648]
[1758334049230,3.91891681,4471.3,4471.2,5.648]
[1758334050488,3.91891681,4471.3,4471.2,1.935]
[1758334050889,3.91891681,4471.3,4471.2,5.648]